fUSD/lending_fUSD_20260501
["ID","MTS","AMOUNT","RATE_DAILY","PERIOD"]
[421423412,1777620758000,-10000.0,0.000103,2]
[421423417,1777620778000,-8890.82788707,0.000103,2]
[421423416,1777620778000,-207.17879518,0.00010299,2]
[421423414,1777620778000,-434.57317065,0.00010299,2]
[421423415,1777620778000,-467.4201471,0.00010299,2]
[421423418,1777620780000,-10000.0,0.000103,2]
[421423419,1777620817000,-150.0,0.00010299,2]
[421423420,1777620817000,-3486.0,0.000103,2]
[421423422,1777621001000,202.11,6.236e-05,2]
[421423421,1777621001000,202.11,5.924e-05,2]
[421423426,1777621002000,202.11,7.483e-05,2]
[421423425,1777621002000,202.11,7.171e-05,2]
[421423424,1777621002000,202.11,6.859e-05,2]
[421423423,1777621002000,202.11,6.547e-05,2]
[421423427,1777621003000,202.11,7.795e-05,2]
[421423429,1777621003000,202.11,8.418e-05,2]
[421423428,1777621003000,202.11,8.106e-05,2]
[421423430,1777621004000,202.11,8.73e-05,2]
[421423436,1777621148000,2542.67776111,7.945e-05,2]
[421423433,1777621148000,5000.01,7.945e-05,2]
[421423435,1777621148000,4246.69062289,7.945e-05,2]
[421423434,1777621148000,5000.01,7.945e-05,2]
[421423432,1777621148000,2978.91,7.945e-05,2]
[421423437,1777621410000,-202.11,9.042e-05,2]
[421423446,1777621688000,-202.11,0.00010289,2]
[421423444,1777621688000,-4160.7193,0.000102,2]
[421423445,1777621688000,-88386.9234,0.000102,2]
[421423443,1777621688000,-6788.8087,0.000102,2]
[421423441,1777621688000,-202.11,9.977e-05,2]
[421423439,1777621688000,-202.11,9.665e-05,2]
[421423448,1777621688000,-500.0,0.00010299,2]
[421423440,1777621688000,-162.61798079,9.946e-05,2]
[421423438,1777621688000,-202.11,9.353e-05,2]
[421423442,1777621688000,-150.0,0.00010199,2]
[421423447,1777621688000,-1200.0,0.00010297,2]
[421423452,1777621688000,-500.0,0.00010299,2]
[421423450,1777621688000,-500.0,0.00010299,2]
[421423451,1777621688000,-500.0,0.00010299,2]
[421423453,1777621688000,-500.0,0.00010299,2]
[421423454,1777621688000,-649.83484807,0.00010299,2]
[421423455,1777621688000,-500.0,0.00010299,2]
[421423457,1777621688000,-500.0,0.00010299,2]
[421423456,1777621688000,-474.10339153,0.00010299,2]
[421423459,1777621688000,-373.93909945,0.00010299,2]
[421423460,1777621688000,-500.0,0.00010299,2]
[421423458,1777621688000,-500.0,0.00010299,2]
[421423461,1777621688000,-500.0,0.00010299,2]
[421423449,1777621688000,-500.0,0.00010299,2]
[421423462,1777621689000,-500.0,0.00010299,2]
[421423463,1777621689000,-525.0,0.00010299,2]
[421423464,1777621689000,-490521.72328016,0.000103,2]
[421423471,1777621734000,-516263.48263658,0.000107,2]
[421423468,1777621734000,-5000.01,0.00010374,2]
[421423470,1777621734000,-202.11,0.00010601,2]
[421423469,1777621734000,-1000.0,0.00010491,2]
[421423466,1777621734000,-189.14133746,0.00010299,2]
[421423465,1777621734000,-151.0,0.00010297,2]
[421423467,1777621734000,-77194.25602596,0.000103,2]
[421423472,1777621776000,-202.11,0.00010199,2]
[421423473,1777621777000,-97.89,0.00010199,2]
[421423474,1777621777000,-104.22,0.00010199,2]
[421423475,1777621778000,-45.78,0.00010199,2]
[421423476,1777621778000,-156.33,0.00010299,2]
[421423477,1777621779000,-202.11,0.00010299,2]
[421423478,1777621779000,-221.46153002,0.00010299,2]
[421423479,1777621779000,-107.93002669,0.00010299,2]
[421423480,1777621779000,-202.11,0.00010299,2]
[421423481,1777621780000,-189.95997331,0.00010299,2]
[421423482,1777621780000,-12.15002669,0.00010299,2]
[421423483,1777621781000,-202.11,0.00010299,2]
[421423486,1777621782000,-99.40957691,0.00010299,2]
[421423485,1777621782000,-108.17402575,0.00010299,2]
[421423484,1777621782000,-93.93597425,0.00010299,2]
[421423487,1777621784000,-2836.29046157,0.000107,2]
[421423488,1777621786000,-202.11,0.000101,2]
[421423489,1777621787000,-202.11,0.000101,2]
[421423548,1777621873000,-300.0,0.00010099,2]
[421423550,1777621873000,-4174.8379,0.000101,2]
[421423552,1777621873000,-498.89387459,0.000101,2]
[421423551,1777621873000,-704.11158713,0.000101,2]
[421423549,1777621873000,-1200.0,0.00010099,2]
[421423554,1777621873000,-408227.57344632,0.000101,2]
[421423553,1777621873000,-1086.01793828,0.000101,2]
[421423557,1777621873000,-22003.13622831,0.00010464,2]
[421423556,1777621873000,-7334.04752766,0.000101,2]
[421423555,1777621873000,-7202.13692602,0.000101,2]
[421423574,1777621874000,-150.0,0.00011061,2]
[421423575,1777621874000,-557.29170061,0.00011099,2]
[421423579,1777621874000,-308.81654656,0.00011099,2]
[421423577,1777621874000,-557.2917006,0.00011099,2]
[421423578,1777621874000,-308.8165466,0.00011099,2]
[421423576,1777621874000,-557.2917006,0.00011099,2]
[421423582,1777621874000,-308.81654656,0.00011099,2]
[421423585,1777621874000,-256.9084109,0.0001111,2]
[421423587,1777621874000,-150.0,0.00011113,2]
[421423584,1777621874000,-1680.0,0.00011109,2]
[421423586,1777621874000,-1505.03389402,0.0001111,2]
[421423583,1777621874000,-420.0,0.00011108,2]
[421423580,1777621874000,-308.81654656,0.00011099,2]
[421423573,1777621874000,-150.0,0.00011009,2]
[421423571,1777621874000,-150.0,0.00010957,2]
[421423569,1777621874000,-150.0,0.00010904,2]
[421423570,1777621874000,-202.11,0.00010912,2]
[421423568,1777621874000,-150.0,0.00010852,2]
[421423567,1777621874000,-400.0,0.00010824,2]
[421423564,1777621874000,-150.0,0.000108,2]
[421423566,1777621874000,-150.0,0.000108,2]
[421423565,1777621874000,-150.0,0.000108,2]
[421423563,1777621874000,-150.0,0.000108,2]
[421423561,1777621874000,-200.0,0.00010677,2]
[421423559,1777621874000,-45616.9540651,0.00010487,2]
[421423560,1777621874000,-25805.6863709,0.00010487,2]
[421423562,1777621874000,-88602.04278354,0.000107,2]
[421423558,1777621874000,-3277.42654639,0.00010464,2]
[421423581,1777621874000,-308.81654656,0.00011099,2]
[421423572,1777621874000,-150.0,0.00011,2]
[421423590,1777621874000,-308.81654656,0.00011177,2]
[421423596,1777621874000,-150.0,0.0001127,2]
[421423589,1777621874000,-150.0,0.00011165,2]
[421423591,1777621874000,-150.0,0.000112,2]
[421423620,1777621874000,-415.8717119,0.0001176,2]
[421423617,1777621874000,-150.0,0.00011687,2]
[421423619,1777621874000,-150.0,0.00011739,2]
[421423618,1777621874000,-308.81654656,0.00011719,2]
[421423616,1777621874000,-380.5293217,0.00011648,2]
[421423613,1777621874000,-150.0,0.00011635,2]
[421423614,1777621874000,-557.2917006,0.00011639,2]
[421423615,1777621874000,-964.4933708,0.00011648,2]
[421423611,1777621874000,-150.0,0.0001163,2]
[421423608,1777621874000,-308.81654656,0.00011539,2]
[421423612,1777621874000,-157.12574669,0.0001163,2]
[421423609,1777621874000,-150.0,0.00011583,2]
[421423607,1777621874000,-202.11,0.00011536,2]
[421423606,1777621874000,-150.0,0.0001153,2]
[421423610,1777621874000,-150.0,0.000116,2]
[421423604,1777621874000,-150.0,0.00011478,2]
[421423605,1777621874000,-557.2917006,0.00011508,2]
[421423592,1777621874000,-150.0,0.00011217,2]
[421423593,1777621874000,-202.11,0.00011224,2]
[421423595,1777621874000,-557.2917006,0.00011247,2]
[421423594,1777621874000,-200.0,0.00011225,2]
[421423621,1777621874000,-557.2917006,0.00011769,2]
[421423597,1777621874000,-150.0,0.00011322,2]
[421423588,1777621874000,-557.2917006,0.00011116,2]
[421423603,1777621874000,-150.0,0.00011426,2]
[421423602,1777621874000,-150.0,0.000114,2]
[421423601,1777621874000,-174.61919142,0.00011389,2]
[421423599,1777621874000,-150.0,0.00011374,2]
[421423600,1777621874000,-557.2917006,0.00011377,2]
[421423598,1777621874000,-308.81654656,0.00011358,2]
[421423632,1777621875000,-1090.8813107,0.000119,2]
[421423633,1777621875000,-200.0,0.00011904,2]
[421423631,1777621875000,-557.2917006,0.000119,2]
[421423628,1777621875000,-10000.0,0.000119,2]
[421423630,1777621875000,-1045.62705016,0.000119,2]
[421423629,1777621875000,-308.81654656,0.000119,2]
[421423625,1777621875000,-150.0,0.00011843,2]
[421423623,1777621875000,-150.0,0.00011791,2]
[421423624,1777621875000,-150.0,0.000118,2]
[421423626,1777621875000,-202.11,0.00011848,2]
[421423622,1777621875000,-200.0,0.00011773,2]
[421423637,1777621875000,-874.583,0.00011999,2]
[421423627,1777621875000,-150.0,0.00011896,2]
[421423634,1777621875000,-150.0,0.00011948,2]
[421423649,1777621875000,-17440.07805141,0.00012,2]
[421423636,1777621875000,-300.0,0.00011999,2]
[421423650,1777621875000,-4033.83217871,0.00012,2]
[421423647,1777621875000,-8355.461751,0.00012,2]
[421423646,1777621875000,-48829.746,0.00012,2]
[421423648,1777621875000,-36008.590824,0.00012,2]
[421423635,1777621875000,-300.0,0.00011999,2]
[421423645,1777621875000,-5903.718551,0.00012,2]
[421423644,1777621875000,-613.1128153,0.00012,2]
[421423641,1777621875000,-579.00826449,0.00012,2]
[421423640,1777621875000,-340.65297838,0.00012,2]
[421423642,1777621875000,-380.52932165,0.00012,2]
[421423639,1777621875000,-353.14920216,0.00012,2]
[421423638,1777621875000,-19000.36113287,0.00012,2]
[421423643,1777621875000,-315.14338462,0.00012,2]
[421423653,1777621876000,-103.51356633,0.00012,2]
[421423652,1777621876000,-18106.63180221,0.00012,2]
[421423651,1777621876000,-888.0,0.00012,2]
[421423654,1777621876000,-17992.35132159,0.00012,2]
[421423656,1777621876000,-1279488.08836561,0.00012,2]
[421423657,1777621876000,-379312.69914125,0.00012,2]
[421423658,1777621876000,-117326.58753123,0.00012,2]
[421423659,1777621876000,-36.59906185,0.00012,2]
[421423655,1777621876000,-616.0,0.00012,2]
[421423662,1777621877000,4473.247897,7.945e-05,2]
[421423661,1777621877000,-923.0,0.00012,2]
[421423660,1777621877000,-381.31942358,0.00012,2]
[421423671,1777621889000,281.58,4.937e-05,2]
[421423672,1777621890000,281.58,5.197e-05,2]
[421423673,1777621890000,281.58,5.456e-05,2]
[421423674,1777621890000,281.58,5.716e-05,2]
[421423675,1777621890000,281.58,5.976e-05,2]
[421423676,1777621890000,281.58,6.236e-05,2]
[421423680,1777621891000,281.58,7.275e-05,2]
[421423679,1777621891000,281.58,7.015e-05,2]
[421423678,1777621891000,281.58,6.756e-05,2]
[421423677,1777621891000,281.58,6.496e-05,2]
[421423681,1777621892000,281.58,7.535e-05,2]
[421423682,1777621892000,281.58,7.795e-05,2]
[421423685,1777621892000,281.58,8.574e-05,2]
[421423684,1777621892000,281.58,8.315e-05,2]
[421423683,1777621892000,281.58,8.055e-05,2]
[421423686,1777621893000,281.58,8.834e-05,2]
[421423687,1777622005000,-256.0,9.094e-05,2]
[421423690,1777622084000,-281.58,9.094e-05,2]
[421423692,1777622086000,-281.58,9.354e-05,2]
[421423694,1777622087000,-281.58,9.874e-05,2]
[421423693,1777622087000,-281.58,9.614e-05,2]
[421423695,1777622088000,-281.58,0.00010049,2]
[421423696,1777622089000,-281.58,0.00010049,2]
[421423722,1777622945000,-216.83912454,9.074e-05,2]
[421423720,1777622945000,-150.0,9.074e-05,2]
[421423726,1777622945000,-150.0,9.074e-05,2]
[421423721,1777622945000,-150.0,9.074e-05,2]
[421423729,1777622945000,-281.59164802,9.377e-05,2]
[421423724,1777622945000,-150.0,9.074e-05,2]
[421423725,1777622945000,-150.0,9.074e-05,2]
[421423728,1777622945000,-150.0,9.326e-05,2]
[421423727,1777622945000,-150.0,9.2e-05,2]
[421423723,1777622945000,-150.0,9.074e-05,2]
[421423736,1777622953000,-133.76214466,9.578e-05,2]
[421423735,1777622953000,-300.0,9.577e-05,2]
[421423734,1777622953000,-2553.262087,9.529e-05,2]
[421423730,1777622953000,-218.40835198,9.377e-05,2]
[421423732,1777622953000,-220.25,9.424e-05,2]
[421423733,1777622953000,-150.0,9.452e-05,2]
[421423731,1777622953000,-1000.0,9.389e-05,2]
[421423737,1777622959000,-16.23785534,9.578e-05,2]
[421423740,1777622959000,-349.88751765,9.898e-05,2]
[421423739,1777622959000,-150.0,9.83e-05,2]
[421423738,1777622959000,-150.0,9.704e-05,2]
[421423750,1777623032000,-11.55936912,9.999e-05,2]
[421423744,1777623032000,-347.8503141,9.898e-05,2]
[421423746,1777623032000,-498.14516825,9.898e-05,2]
[421423745,1777623032000,-418.75,9.898e-05,2]
[421423747,1777623032000,-198.23,9.898e-05,2]
[421423748,1777623032000,-150.0,9.956e-05,2]
[421423749,1777623032000,-138.44063088,9.999e-05,2]
[421423751,1777623032000,-744.0,9.999e-05,2]
[421423752,1777623032000,-300.0,9.999e-05,2]
[421423756,1777623032000,-462.46160238,0.0001,2]
[421423753,1777623032000,-965.76260793,9.999e-05,2]
[421423761,1777623032000,-151.0,0.0001,2]
[421423758,1777623032000,-797.58983779,0.0001,2]
[421423759,1777623032000,-822.44273562,0.0001,2]
[421423754,1777623032000,-234.23739207,9.999e-05,2]
[421423757,1777623032000,-207.77413541,0.0001,2]
[421423762,1777623032000,-30.54707187,0.0001,2]
[421423755,1777623032000,-49.91464008,0.0001,2]
[421423760,1777623032000,-500.0,0.0001,2]
[421423774,1777623038000,-428.3066978,0.0001,2]
[421423786,1777623038000,-500.0,0.0001,2]
[421423783,1777623038000,-342.83133071,0.0001,2]
[421423781,1777623038000,-533.43200772,0.0001,2]
[421423782,1777623038000,-151.0,0.0001,2]
[421423780,1777623038000,-151.0,0.0001,2]
[421423779,1777623038000,-500.0,0.0001,2]
[421423777,1777623038000,-114.17425894,0.0001,2]
[421423778,1777623038000,-36.82574106,0.0001,2]
[421423772,1777623038000,-151.0,0.0001,2]
[421423775,1777623038000,-151.0,0.0001,2]
[421423771,1777623038000,-500.0,0.0001,2]
[421423773,1777623038000,-71.6933022,0.0001,2]
[421423787,1777623038000,-500.0,0.0001,2]
[421423770,1777623038000,-151.0,0.0001,2]
[421423769,1777623038000,-500.0,0.0001,2]
[421423767,1777623038000,-500.0,0.0001,2]
[421423765,1777623038000,-469.45292813,0.0001,2]
[421423766,1777623038000,-151.0,0.0001,2]
[421423776,1777623038000,-500.0,0.0001,2]
[421423784,1777623038000,-157.16866929,0.0001,2]
[421423768,1777623038000,-151.0,0.0001,2]
[421423789,1777623038000,-177.74091941,0.0001,2]
[421423804,1777623038000,-320.59264279,0.00010099,2]
[421423805,1777623038000,-184.51208819,0.00010305,2]
[421423806,1777623038000,-169.32,0.00010399,2]
[421423807,1777623038000,-12686.25,0.00010408,2]
[421423802,1777623038000,-234.67773048,0.00010099,2]
[421423801,1777623038000,-405.53720534,0.00010099,2]
[421423803,1777623038000,-500.0,0.00010099,2]
[421423799,1777623038000,-500.0,0.00010099,2]
[421423796,1777623038000,-150.0,0.00010082,2]
[421423798,1777623038000,-225.0,0.00010099,2]
[421423800,1777623038000,-444.01056537,0.00010099,2]
[421423794,1777623038000,-528.47338978,0.0001,2]
[421423795,1777623038000,-150.0,0.00010082,2]
[421423797,1777623038000,-150.0,0.00010082,2]
[421423793,1777623038000,-500.0,0.0001,2]
[421423792,1777623038000,-500.0,0.0001,2]
[421423791,1777623038000,-317.77861899,0.0001,2]
[421423790,1777623038000,-182.22138101,0.0001,2]
[421423788,1777623038000,-322.25908059,0.0001,2]
[421423808,1777623038000,-4272.50089899,0.00010459,2]
[421423785,1777623038000,-500.0,0.0001,2]
[421423810,1777623039000,-2008.31450221,0.00010459,2]
[421423809,1777623039000,-1333.84961337,0.00010459,2]
[421423862,1777623040000,-500.0,0.00011356,2]
[421423847,1777623040000,-500.0,0.00011356,2]
[421423851,1777623040000,-500.0,0.00011356,2]
[421423848,1777623040000,-500.0,0.00011356,2]
[421423849,1777623040000,-500.0,0.00011356,2]
[421423850,1777623040000,-500.0,0.00011356,2]
[421423853,1777623040000,-500.0,0.00011356,2]
[421423852,1777623040000,-500.0,0.00011356,2]
[421423861,1777623040000,-500.0,0.00011356,2]
[421423854,1777623040000,-500.0,0.00011356,2]
[421423855,1777623040000,-508.85854091,0.00011356,2]
[421423857,1777623040000,-500.0,0.00011356,2]
[421423856,1777623040000,-403.20801292,0.00011356,2]
[421423858,1777623040000,-500.0,0.00011356,2]
[421423859,1777623040000,-500.0,0.00011356,2]
[421423860,1777623040000,-500.0,0.00011356,2]
[421423863,1777623040000,-500.0,0.00011356,2]
[421423864,1777623040000,-500.0,0.00011356,2]
[421423846,1777623040000,-156.81735744,0.00011356,2]
[421423845,1777623040000,-114.42376039,0.00011356,2]
[421423837,1777623040000,-166.66,0.00011096,2]
[421423841,1777623040000,-166.66,0.00011233,2]
[421423865,1777623040000,-500.0,0.00011356,2]
[421423811,1777623040000,-380.52932165,0.00010459,2]
[421423812,1777623040000,-1722.94122752,0.00010459,2]
[421423814,1777623040000,-480.92488867,0.000105,2]
[421423813,1777623040000,-385.20443626,0.00010459,2]
[421423824,1777623040000,-239.07511133,0.000105,2]
[421423828,1777623040000,-1540.79520882,0.000106,2]
[421423826,1777623040000,-983.93439118,0.000106,2]
[421423844,1777623040000,-35.57623961,0.00011356,2]
[421423831,1777623040000,-500.0,0.000106,2]
[421423835,1777623040000,-255.0,0.00010999,2]
[421423833,1777623040000,-914.92366889,0.000109,2]
[421423832,1777623040000,-168.42,0.00010778,2]
[421423834,1777623040000,-166.66,0.00010959,2]
[421423838,1777623040000,-154.40827329,0.00011099,2]
[421423840,1777623040000,-154.40827328,0.00011099,2]
[421423842,1777623040000,-1002.4750944,0.00011255,2]
[421423843,1777623040000,-150.0,0.00011356,2]
[421423839,1777623040000,-154.40827328,0.00011099,2]
[421423867,1777623040000,-500.0,0.00011356,2]
[421423836,1777623040000,-1680.0,0.00010999,2]
[421423868,1777623040000,-500.0,0.00011356,2]
[421423891,1777623040000,-174.61919141,0.00011399,2]
[421423893,1777623040000,-209.40437684,0.00011399,2]
[421423892,1777623040000,-578.20924308,0.00011399,2]
[421423895,1777623040000,-9905.5980765,0.00011454,2]
[421423896,1777623040000,-151.0,0.00011454,2]
[421423901,1777623040000,-10652.17309792,0.00011564,2]
[421423897,1777623040000,-154.40827328,0.00011476,2]
[421423898,1777623040000,-166.66,0.00011507,2]
[421423889,1777623040000,-315.4474463,0.00011399,2]
[421423900,1777623040000,-151.0,0.00011509,2]
[421423899,1777623040000,-10272.10520533,0.00011509,2]
[421423902,1777623040000,-151.0,0.00011564,2]
[421423903,1777623040000,-664.79472617,0.00011619,2]
[421423904,1777623040000,-335.38,0.00011619,2]
[421423906,1777623040000,-151.0,0.00011619,2]
[421423905,1777623040000,-10046.12877638,0.00011619,2]
[421423910,1777623040000,-297.0302,0.00011674,2]
[421423912,1777623040000,-400.76739827,0.00011674,2]
[421423894,1777623040000,-214.42,0.000114,2]
[421423886,1777623040000,-9552.16786547,0.00011399,2]
[421423908,1777623040000,-3876.66933309,0.00011674,2]
[421423887,1777623040000,-1428.38747117,0.00011399,2]
[421423888,1777623040000,-434.18632452,0.00011399,2]
[421423870,1777623040000,-500.0,0.00011356,2]
[421423869,1777623040000,-500.0,0.00011356,2]
[421423871,1777623040000,-500.0,0.00011356,2]
[421423873,1777623040000,-150.0,0.00011356,2]
[421423872,1777623040000,-500.0,0.00011356,2]
[421423874,1777623040000,-648.9738468,0.00011356,2]
[421423875,1777623040000,-500.0,0.00011356,2]
[421423877,1777623040000,-500.0,0.00011356,2]
[421423866,1777623040000,-500.0,0.00011356,2]
[421423878,1777623040000,-150.0,0.00011356,2]
[421423890,1777623040000,-151.0,0.00011399,2]
[421423883,1777623040000,-555.45988345,0.00011356,2]
[421423884,1777623040000,-250.0,0.00011356,2]
[421423885,1777623040000,-166.66,0.0001137,2]
[421423876,1777623040000,-150.0,0.00011356,2]
[421423881,1777623040000,-500.0,0.00011356,2]
[421423879,1777623040000,-500.0,0.00011356,2]
[421423882,1777623040000,-150.0,0.00011356,2]
[421423880,1777623040000,-150.0,0.00011356,2]
[421423924,1777623043000,-1179.99459931,0.00011674,2]
[421423923,1777623043000,-540.70974157,0.00011674,2]
[421423957,1777623046000,-151.0,0.00011674,2]
[421423967,1777623046000,-962.96296,0.0001188,2]
[421423960,1777623046000,-2710.22380906,0.00011729,2]
[421423965,1777623046000,-720.0,0.00011812,2]
[421423962,1777623046000,-65.5581328,0.00011729,2]
[421423963,1777623046000,-277.24780793,0.0001176,2]
[421423961,1777623046000,-85.4418672,0.00011729,2]
[421423958,1777623046000,-2401.61678868,0.00011729,2]
[421423959,1777623046000,-1941.0694,0.00011729,2]
[421423966,1777623046000,-151.0,0.00011839,2]
[421423964,1777623046000,-151.0,0.00011784,2]
[421423956,1777623046000,-5159.8454599,0.00011674,2]
[421423968,1777623046000,-962.96296,0.0001188,2]
[421423969,1777623046000,-962.96297,0.0001189,2]
[421423970,1777623046000,-446.88730262,0.000119,2]
[421423981,1777623046000,-141.20700257,0.0001191,2]
[421423978,1777623046000,-121.14776504,0.000119,5]
[421423979,1777623046000,-154.0,0.000119,5]
[421423977,1777623046000,-37.85223496,0.000119,5]
[421423975,1777623046000,-727.25420712,0.000119,2]
[421423974,1777623046000,-45.35859928,0.000119,2]
[421423973,1777623046000,-124.77241534,0.000119,2]
[421423971,1777623046000,-2355.11269738,0.000119,2]
[421423972,1777623046000,-154.40827328,0.000119,2]
[421423976,1777623046000,-3043.53495864,0.000119,2]
[421424005,1777623067000,357.5,7.945e-05,2]
[421424008,1777623214000,-10000.01,9.999e-05,2]
[421424009,1777623409000,-10000.01,9.999e-05,2]
[421424011,1777623410000,-10000.01,9.999e-05,2]
[421424010,1777623410000,-10000.01,9.999e-05,2]
[421424015,1777623411000,-10000.01,9.999e-05,2]
[421424012,1777623411000,-574.41484995,9.998e-05,2]
[421424013,1777623411000,-164.27441134,9.998e-05,2]
[421424014,1777623411000,-9261.32073871,9.999e-05,2]
[421424016,1777623412000,-1200.0,9.998e-05,2]
[421424019,1777623412000,-9500.01,9.899e-05,2]
[421424018,1777623412000,-500.0,9.899e-05,2]
[421424017,1777623412000,-8800.01,9.999e-05,2]
[421424022,1777623413000,-150.0,9.898e-05,2]
[421424021,1777623413000,-190.0,9.898e-05,2]
[421424020,1777623413000,-1200.0,9.898e-05,2]
[421424023,1777623413000,-8460.01,9.899e-05,2]
[421424025,1777623414000,-9819.25,9.899e-05,2]
[421424024,1777623414000,-180.76,8.844e-05,2]
[421424026,1777623415000,-4014.0152,9.899e-05,2]
[421424028,1777623415000,-500.0,9.998e-05,2]
[421424027,1777623415000,-2275.2836,9.899e-05,2]
[421424030,1777623415000,-3049.90380424,9.999e-05,2]
[421424032,1777623415000,-7500.01,9.999e-05,2]
[421424031,1777623415000,-2500.0,9.899e-05,2]
[421424029,1777623415000,-160.80739576,9.998e-05,2]
[421424034,1777623416000,-10000.01,9.999e-05,2]
[421424033,1777623416000,-10000.01,9.999e-05,2]
[421424035,1777623417000,-10000.01,9.999e-05,2]
[421424036,1777623443000,-300.0,9.998e-05,2]
[421424039,1777623524000,-250.0,9.998e-05,2]
[421424040,1777623526000,-250.0,9.999e-05,2]
[421424043,1777623526000,-100.0,9.999e-05,2]
[421424042,1777623526000,-150.0,9.998e-05,2]
[421424041,1777623526000,-250.0,9.999e-05,2]
[421424045,1777623527000,-250.0,9.998e-05,2]
[421424044,1777623527000,-250.0,9.999e-05,2]
[421424046,1777623567000,-250.0,9.998e-05,2]
[421424048,1777623763000,-250.0,9.998e-05,2]
[421424052,1777623764000,-149.68460943,9.998e-05,2]
[421424051,1777623764000,-50.0,9.997e-05,2]
[421424050,1777623764000,-300.31539057,9.99e-05,2]
[421424049,1777623764000,-250.0,9.997e-05,2]
[421424053,1777623765000,-500.0,9.998e-05,2]
[421424055,1777623765000,-500.0,9.997e-05,2]
[421424054,1777623765000,-500.0,9.998e-05,2]
[421424056,1777623766000,-500.0,9.997e-05,2]
[421424058,1777623767000,-300.0,9.998e-05,2]
[421424057,1777623767000,-200.0,9.997e-05,2]
[421424059,1777623768000,-200.0,9.998e-05,2]
[421424060,1777623768000,-300.0,9.998e-05,2]
[421424062,1777623768000,-300.0,9.998e-05,2]
[421424063,1777623768000,-172.0,9.997e-05,2]
[421424064,1777623768000,-200.0,9.998e-05,2]
[421424065,1777623768000,-128.0,9.998e-05,2]
[421424061,1777623768000,-200.0,9.998e-05,2]
[421424066,1777623769000,-372.0,9.998e-05,2]
[421424067,1777623769000,-128.0,9.998e-05,2]
[421424068,1777623770000,-500.0,9.799e-05,2]
[421424073,1777623771000,-237.443,9.998e-05,2]
[421424072,1777623771000,-262.557,9.998e-05,2]
[421424071,1777623771000,-109.443,9.998e-05,2]
[421424070,1777623771000,-158.584,9.799e-05,2]
[421424069,1777623771000,-231.973,9.799e-05,2]
[421424074,1777623772000,-262.557,9.998e-05,2]
[421424075,1777623772000,-237.443,9.998e-05,2]
[421424077,1777623773000,-237.443,9.998e-05,2]
[421424076,1777623773000,-262.557,9.998e-05,2]
[421424078,1777623809000,-1734.72874697,9.998e-05,2]
[421424081,1777624072000,-262.557,9.998e-05,2]
[421424082,1777624074000,-262.557,9.998e-05,2]
[421424084,1777624076000,-262.557,9.997e-05,2]
[421424086,1777624077000,-150.0,9.997e-05,2]
[421424085,1777624077000,-37.443,9.997e-05,2]
[421424089,1777624077000,-100.228,9.998e-05,2]
[421424088,1777624077000,-162.329,9.998e-05,2]
[421424087,1777624077000,-75.114,9.998e-05,2]
[421424096,1777624078000,-150.0,8.975e-05,2]
[421424098,1777624078000,150.0,8.975e-05,2]
[421424097,1777624078000,-150.00000001,8.975e-05,2]
[421424095,1777624078000,-190.32127941,8.975e-05,2]
[421424092,1777624078000,-37.443,8.975e-05,2]
[421424094,1777624078000,-150.0,8.975e-05,2]
[421424093,1777624078000,-150.0,8.975e-05,2]
[421424090,1777624078000,-150.0,8.975e-05,2]
[421424091,1777624078000,-112.557,8.975e-05,2]
[421424100,1777624079000,-60.92732827,8.975e-05,2]